[Event "*** SCC Grand Prix: Titled Tuesday Blitz"]
[Site "Chess.com"]
[Date "2020.07.21"]
[Round "6"]
[White "Spartakus1975"]
[Black "Sjakkerntobi"]
[Result "1-0"]
[WhiteElo "2643"]
[BlackElo "2415"]
[TimeControl "180+1"]
[EndTime "11:06:47 PDT"]
[Termination "Spartakus1975 won by checkmate"]

1. e4 {[%clk 0:03:00.9]} 1... e6 {[%clk 0:02:59.7]} 2. d4 {[%clk 0:03:00.1]}
2... d5 {[%clk 0:02:58.4]} 3. exd5 {[%clk 0:03:01]} 3... exd5 {[%clk 0:02:58.2]}
4. Nf3 {[%clk 0:03:01]} 4... Nf6 {[%clk 0:02:57.8]} 5. Bd3 {[%clk 0:03:00.3]}
5... c5 {[%clk 0:02:57.9]} 6. O-O {[%clk 0:02:59.3]} 6... c4 {[%clk 0:02:58.3]}
7. Re1+ {[%clk 0:02:59.8]} 7... Be7 {[%clk 0:02:58.8]} 8. Bf1 {[%clk 0:02:59.9]}
8... O-O {[%clk 0:02:59.5]} 9. Nc3 {[%clk 0:02:59.3]} 9... h6 {[%clk 0:02:57.3]}
10. g3 {[%clk 0:02:58.8]} 10... Nc6 {[%clk 0:02:57]} 11. Bg2 {[%clk 0:02:58.3]}
11... Bf5 {[%clk 0:02:57.6]} 12. Bf4 {[%clk 0:02:55.1]} 12... a6 {[%clk
0:02:50.1]} 13. Ne5 {[%clk 0:02:54.8]} 13... Re8 {[%clk 0:02:25.7]} 14. Qd2
{[%clk 0:02:52.1]} 14... Bf8 {[%clk 0:02:20.1]} 15. h3 {[%clk 0:02:45.1]} 15...
Qb6 {[%clk 0:02:19.4]} 16. Nxd5 {[%clk 0:02:42.4]} 16... Qxd4 {[%clk 0:02:02.8]}
17. Nxf6+ {[%clk 0:02:40.2]} 17... gxf6 {[%clk 0:02:00.8]} 18. Nxc6 {[%clk
0:02:40.7]} 18... Qxd2 {[%clk 0:01:55.2]} 19. Bxd2 {[%clk 0:02:40.2]} 19... bxc6
{[%clk 0:01:56.1]} 20. Bxc6 {[%clk 0:02:37.5]} 20... Rxe1+ {[%clk 0:01:56.7]}
21. Rxe1 {[%clk 0:02:35.1]} 21... Rb8 {[%clk 0:01:57.4]} 22. Bc3 {[%clk
0:02:32.8]} 22... Bxc2 {[%clk 0:01:46.7]} 23. Bd5 {[%clk 0:02:32.8]} 23... Bd3
{[%clk 0:01:33.7]} 24. Kg2 {[%clk 0:02:11.7]} 24... Bb4 {[%clk 0:01:09.2]} 25.
g4 {[%clk 0:02:10.3]} 25... Bxc3 {[%clk 0:00:59.7]} 26. bxc3 {[%clk 0:02:10]}
26... Rb2 {[%clk 0:01:00.6]} 27. Re8+ {[%clk 0:02:08.1]} 27... Kg7 {[%clk
0:00:58.2]} 28. Re7 {[%clk 0:02:08.1]} 28... Kg8 {[%clk 0:00:47.4]} 29. Kg3
{[%clk 0:02:01.8]} 29... Rxa2 {[%clk 0:00:45.2]} 30. Rxf7 {[%clk 0:02:01.6]}
30... Ra3 {[%clk 0:00:32.9]} 31. Rxf6+ {[%clk 0:01:57.9]} 31... Kg7 {[%clk
0:00:33]} 32. Rf7+ {[%clk 0:01:57.8]} 32... Kg8 {[%clk 0:00:32.1]} 33. h4 {[%clk
0:01:42.2]} 33... Rxc3 {[%clk 0:00:30.3]} 34. Rf3+ {[%clk 0:01:42]} 34... Kg7
{[%clk 0:00:28.4]} 35. Bxc4 {[%clk 0:01:42.6]} 35... Rxc4 {[%clk 0:00:28.6]} 36.
Rxd3 {[%clk 0:01:42.5]} 36... a5 {[%clk 0:00:28.6]} 37. Rd7+ {[%clk 0:01:42.5]}
37... Kf6 {[%clk 0:00:21.9]} 38. Ra7 {[%clk 0:01:42.7]} 38... a4 {[%clk
0:00:21.7]} 39. Ra6+ {[%clk 0:01:42.4]} 39... Kg7 {[%clk 0:00:21.5]} 40. g5
{[%clk 0:01:39.7]} 40... hxg5 {[%clk 0:00:22.4]} 41. hxg5 {[%clk 0:01:39.8]}
41... Rc3+ {[%clk 0:00:20.3]} 42. Kg4 {[%clk 0:01:39.8]} 42... a3 {[%clk
0:00:19.7]} 43. f4 {[%clk 0:01:40.3]} 43... Rb3 {[%clk 0:00:18.1]} 44. Ra7+
{[%clk 0:01:37.4]} 44... Kg8 {[%clk 0:00:17.4]} 45. f5 {[%clk 0:01:37.5]} 45...
Rc3 {[%clk 0:00:16.1]} 46. Kh5 {[%clk 0:01:36.8]} 46... Rc5 {[%clk 0:00:14.3]}
47. Kg6 {[%clk 0:01:36.2]} 47... Rc6+ {[%clk 0:00:08]} 48. f6 {[%clk 0:01:36.1]}
48... Rc8 {[%clk 0:00:08.6]} 49. Rg7+ {[%clk 0:01:34.3]} 49... Kf8 {[%clk
0:00:07.6]} 50. Rh7 {[%clk 0:01:34.1]} 50... Kg8 {[%clk 0:00:04]} 51. f7+ {[%clk
0:01:33.6]} 51... Kf8 {[%clk 0:00:04.9]} 52. Rh8+ {[%clk 0:01:33.9]} 52... Ke7
{[%clk 0:00:05.5]} 53. Rxc8 {[%clk 0:01:34.4]} 53... a2 {[%clk 0:00:05]} 54.
f8=Q+ {[%clk 0:01:34.2]} 54... Ke6 {[%clk 0:00:05.9]} 55. Qf5+ {[%clk
0:01:32.5]} 55... Kd6 {[%clk 0:00:04.7]} 56. Rd8+ {[%clk 0:01:31.4]} 56... Kc7
{[%clk 0:00:05.1]} 57. Qd7+ {[%clk 0:01:30.3]} 57... Kb6 {[%clk 0:00:05.6]} 58.
Qd6+ {[%clk 0:01:30.3]} 58... Kb5 {[%clk 0:00:05.8]} 59. Rb8+ {[%clk 0:01:30.3]}
59... Kc4 {[%clk 0:00:05.7]} 60. Rb4+ {[%clk 0:01:30]} 60... Kc3 {[%clk
0:00:06]} 61. Qd4+ {[%clk 0:01:30]} 61... Kc2 {[%clk 0:00:05.9]} 62. Rb2+ {[%clk
0:01:29.8]} 62... Kc1 {[%clk 0:00:06.8]} 63. Qd2# {[%clk 0:01:29.7]} 1-0

[Event "*** SCC Grand Prix: Titled Tuesday Blitz"]
[Site "Chess.com"]
[Date "2020.07.21"]
[Round "6"]
[White "1f3_2g41-0"]
[Black "Zurability"]
[Result "0-1"]
[WhiteElo "2385"]
[BlackElo "2580"]
[TimeControl "180+1"]
[EndTime "11:06:48 PDT"]
[Termination "Zurability won by checkmate"]

1. e4 {[%clk 0:03:00.9]} 1... c5 {[%clk 0:02:57.3]} 2. Nf3 {[%clk 0:03:00.7]}
2... d6 {[%clk 0:02:57.9]} 3. d4 {[%clk 0:03:00.8]} 3... cxd4 {[%clk 0:02:58.8]}
4. Nxd4 {[%clk 0:03:00.8]} 4... Nf6 {[%clk 0:02:59.5]} 5. Nc3 {[%clk 0:03:01]}
5... a6 {[%clk 0:03:00.2]} 6. h3 {[%clk 0:03:01.2]} 6... e5 {[%clk 0:03:00]} 7.
Nde2 {[%clk 0:03:00.9]} 7... h5 {[%clk 0:02:52.2]} 8. g3 {[%clk 0:03:00.7]} 8...
Be6 {[%clk 0:02:52.1]} 9. Bg2 {[%clk 0:03:00.9]} 9... Nbd7 {[%clk 0:02:51.3]}
10. Be3 {[%clk 0:03:00.9]} 10... h4 {[%clk 0:02:49.6]} 11. g4 {[%clk 0:03:00.1]}
11... Be7 {[%clk 0:02:50]} 12. a4 {[%clk 0:02:58.3]} 12... Rc8 {[%clk
0:02:49.9]} 13. O-O {[%clk 0:02:57.4]} 13... O-O {[%clk 0:02:48.8]} 14. a5
{[%clk 0:02:56.9]} 14... Nc5 {[%clk 0:02:39.5]} 15. b4 {[%clk 0:02:46.5]} 15...
Ncd7 {[%clk 0:02:38.4]} 16. Nd5 {[%clk 0:02:46.3]} 16... Bxd5 {[%clk 0:02:32.4]}
17. exd5 {[%clk 0:02:44.5]} 17... Rc4 {[%clk 0:02:32.2]} 18. c3 {[%clk
0:02:30.3]} 18... Nh7 {[%clk 0:02:26.6]} 19. Qd3 {[%clk 0:02:26.8]} 19... Qc8
{[%clk 0:02:18.3]} 20. Qf5 {[%clk 0:02:06.5]} 20... g6 {[%clk 0:02:10.1]} 21.
Qd3 {[%clk 0:02:00.3]} 21... Bg5 {[%clk 0:02:09.3]} 22. Bxg5 {[%clk 0:01:49.5]}
22... Nxg5 {[%clk 0:02:08.4]} 23. Qe3 {[%clk 0:01:49.8]} 23... f6 {[%clk
0:01:52.4]} 24. f4 {[%clk 0:01:43.4]} 24... exf4 {[%clk 0:01:52.7]} 25. Nxf4
{[%clk 0:01:42.8]} 25... Ne5 {[%clk 0:01:38.3]} 26. Qb6 {[%clk 0:01:22]} 26...
Rxc3 {[%clk 0:01:15.5]} 27. Qxd6 {[%clk 0:01:18.5]} 27... Rc2 {[%clk 0:01:02.2]}
28. Nxg6 {[%clk 0:00:59.3]} 28... Nxg6 {[%clk 0:00:50.7]} 29. Rxf6 {[%clk
0:00:58.8]} 29... Rxg2+ {[%clk 0:00:44.5]} 30. Kxg2 {[%clk 0:00:57.4]} 30...
Qc2+ {[%clk 0:00:44.9]} 31. Kg1 {[%clk 0:00:38.5]} 31... Nf3+ {[%clk 0:00:20.5]}
32. Kf1 {[%clk 0:00:26.8]} 32... Qd3+ {[%clk 0:00:16.6]} 33. Kg2 {[%clk
0:00:18]} 33... Qe2+ {[%clk 0:00:14.9]} 34. Kh1 {[%clk 0:00:18.1]} 34... Rxf6
{[%clk 0:00:14.4]} 35. Qd8+ {[%clk 0:00:12.8]} 35... Rf8 {[%clk 0:00:14]} 36.
Qc7 {[%clk 0:00:12.3]} 36... Nf4 {[%clk 0:00:13.1]} 37. Ra2 {[%clk 0:00:05.8]}
37... Qf1# {[%clk 0:00:12.1]} 0-1

[Event "*** SCC Grand Prix: Titled Tuesday Blitz"]
[Site "Chess.com"]
[Date "2020.07.21"]
[Round "6"]
[White "Artem_Sadovsky"]
[Black "northridgehawk"]
[Result "0-1"]
[WhiteElo "2497"]
[BlackElo "2347"]
[TimeControl "180+1"]
[EndTime "11:06:50 PDT"]
[Termination "northridgehawk won on time"]

1. d4 {[%clk 0:02:15.3]} 1... Nf6 {[%clk 0:02:56.2]} 2. Nf3 {[%clk 0:02:16.2]}
2... g6 {[%clk 0:02:56.7]} 3. g3 {[%clk 0:01:36.4]} 3... Bg7 {[%clk 0:02:57.6]}
4. Bg2 {[%clk 0:01:36.3]} 4... O-O {[%clk 0:02:46.2]} 5. O-O {[%clk 0:01:37.2]}
5... d5 {[%clk 0:02:46.2]} 6. c4 {[%clk 0:01:38.1]} 6... dxc4 {[%clk 0:02:45.7]}
7. Nc3 {[%clk 0:01:39]} 7... c6 {[%clk 0:02:41.1]} 8. Ne5 {[%clk 0:01:32.9]}
8... Be6 {[%clk 0:02:38.9]} 9. a4 {[%clk 0:01:28.9]} 9... a5 {[%clk 0:02:36.7]}
10. e4 {[%clk 0:01:20.2]} 10... Na6 {[%clk 0:02:34.6]} 11. Qe2 {[%clk
0:01:10.3]} 11... Qxd4 {[%clk 0:02:27.9]} 12. Bf4 {[%clk 0:01:09.6]} 12... Qb6
{[%clk 0:02:26]} 13. Nxc4 {[%clk 0:00:43.9]} 13... Qb4 {[%clk 0:02:22.5]} 14.
Ne3 {[%clk 0:00:35.7]} 14... Nc5 {[%clk 0:02:18.3]} 15. Ra3 {[%clk 0:00:30.5]}
15... Nfxe4 {[%clk 0:02:16.7]} 16. Nxe4 {[%clk 0:00:22.7]} 16... Nxe4 {[%clk
0:02:17.6]} 17. Nc2 {[%clk 0:00:19.8]} 17... Qxb2 {[%clk 0:02:01.9]} 18. Bxe4
{[%clk 0:00:18.5]} 18... Rfd8 {[%clk 0:01:56.6]} 19. Rd3 {[%clk 0:00:09.9]}
19... Bb3 {[%clk 0:01:52.5]} 20. Rxd8+ {[%clk 0:00:08.9]} 20... Rxd8 {[%clk
0:01:53.1]} 21. Bc1 {[%clk 0:00:09.1]} 21... Qc3 {[%clk 0:01:50.6]} 22. Ne3
{[%clk 0:00:08.3]} 22... Qb4 {[%clk 0:01:47.5]} 23. Bc2 {[%clk 0:00:04.7]} 23...
Bxa4 {[%clk 0:01:41.2]} 24. Bxa4 {[%clk 0:00:02.2]} 24... Qxa4 {[%clk
0:01:42.1]} 25. Qc4 {[%clk 0:00:02.1]} 25... Qxc4 {[%clk 0:01:39.1]} 26. Nxc4
{[%clk 0:00:03]} 26... a4 {[%clk 0:01:38.9]} 27. Be3 {[%clk 0:00:03.3]} 27... b5
{[%clk 0:01:38.8]} 28. Na5 {[%clk 0:00:03.1]} 28... c5 {[%clk 0:01:29.2]} 29.
Bxc5 {[%clk 0:00:02.9]} 29... Rc8 {[%clk 0:01:28.6]} 30. Bxe7 {[%clk 0:00:02.7]}
30... b4 {[%clk 0:01:27.7]} 31. Bxb4 {[%clk 0:00:02.7]} 31... Ra8 {[%clk
0:01:25.2]} 32. Rb1 {[%clk 0:00:01.8]} 32... a3 {[%clk 0:01:24.7]} 33. Nb3
{[%clk 0:00:02.1]} 33... a2 {[%clk 0:01:24.5]} 34. Rd1 {[%clk 0:00:02.3]} 34...
Rb8 {[%clk 0:01:23.3]} 35. Na1 {[%clk 0:00:02]} 35... Rxb4 {[%clk 0:01:21.7]}
36. Kg2 {[%clk 0:00:02.9]} 36... Ra4 {[%clk 0:01:21.1]} 37. Rd8+ {[%clk
0:00:02.9]} 37... Bf8 {[%clk 0:01:20]} 38. Rc8 {[%clk 0:00:03.4]} 38... Rb4
{[%clk 0:01:19.9]} 39. Ra8 {[%clk 0:00:03.7]} 39... Rb2 {[%clk 0:01:19.5]} 40.
Kf3 {[%clk 0:00:03.8]} 40... Kg7 {[%clk 0:01:17.7]} 41. h4 {[%clk 0:00:04]}
41... Bc5 {[%clk 0:01:17.7]} 42. Ra4 {[%clk 0:00:03.6]} 42... Rxf2+ {[%clk
0:01:15.2]} 43. Ke4 {[%clk 0:00:04.1]} 43... Be7 {[%clk 0:01:14.5]} 44. Nb3
{[%clk 0:00:04.3]} 44... Bf6 {[%clk 0:01:14.4]} 45. g4 {[%clk 0:00:02.1]} 45...
Bxh4 {[%clk 0:01:13.1]} 46. Nd4 {[%clk 0:00:03]} 46... Bg5 {[%clk 0:01:10.7]}
47. Nf3 {[%clk 0:00:02.7]} 47... Bf6 {[%clk 0:01:09.7]} 48. g5 {[%clk
0:00:02.7]} 48... Bc3 {[%clk 0:01:05.9]} 49. Ne5 {[%clk 0:00:01.8]} 49... a1=Q
{[%clk 0:01:04.6]} 50. Rxa1 {[%clk 0:00:02.7]} 50... Bxa1 {[%clk 0:01:04.7]} 51.
Nd3 {[%clk 0:00:03.6]} 51... Rf5 {[%clk 0:01:02.6]} 0-1

[Event "*** SCC Grand Prix: Titled Tuesday Blitz"]
[Site "Chess.com"]
[Date "2020.07.21"]
[Round "6"]
[White "Boudicca64"]
[Black "rududuyk"]
[Result "0-1"]
[WhiteElo "1785"]
[BlackElo "2062"]
[TimeControl "180+1"]
[EndTime "11:06:52 PDT"]
[Termination "rududuyk won on time"]

1. e4 {[%clk 0:03:00.9]} 1... e6 {[%clk 0:02:59.9]} 2. d4 {[%clk 0:02:59.2]}
2... d5 {[%clk 0:03:00]} 3. exd5 {[%clk 0:02:58.4]} 3... exd5 {[%clk 0:03:00.9]}
4. Nf3 {[%clk 0:02:57.5]} 4... Nf6 {[%clk 0:03:00.5]} 5. c4 {[%clk 0:02:55.5]}
5... Bb4+ {[%clk 0:02:51.1]} 6. Nc3 {[%clk 0:02:53.7]} 6... O-O {[%clk 0:02:51]}
7. Bg5 {[%clk 0:02:49.6]} 7... Re8+ {[%clk 0:02:29.2]} 8. Be2 {[%clk 0:02:47.6]}
8... c6 {[%clk 0:02:20.5]} 9. O-O {[%clk 0:02:46]} 9... h6 {[%clk 0:02:14.6]}
10. Bh4 {[%clk 0:02:41]} 10... g5 {[%clk 0:02:08.5]} 11. Bg3 {[%clk 0:02:39.7]}
11... Bxc3 {[%clk 0:02:07.6]} 12. bxc3 {[%clk 0:02:38.1]} 12... Ne4 {[%clk
0:02:07.5]} 13. Ne5 {[%clk 0:02:16.3]} 13... Nxc3 {[%clk 0:01:58.1]} 14. Qc2
{[%clk 0:02:06.3]} 14... Nxe2+ {[%clk 0:01:56.4]} 15. Qxe2 {[%clk 0:02:04.7]}
15... Qf6 {[%clk 0:01:18.6]} 16. Qh5 {[%clk 0:01:54.6]} 16... Nd7 {[%clk
0:01:05.3]} 17. Ng4 {[%clk 0:01:50.1]} 17... Qg6 {[%clk 0:00:59.2]} 18. Nxh6+
{[%clk 0:01:48.2]} 18... Kg7 {[%clk 0:00:58.8]} 19. Qxg6+ {[%clk 0:01:26.9]}
19... Kxg6 {[%clk 0:00:57.3]} 20. Ng4 {[%clk 0:01:25.8]} 20... dxc4 {[%clk
0:00:57.2]} 21. Rfe1 {[%clk 0:01:22.1]} 21... Rxe1+ {[%clk 0:00:38.8]} 22. Rxe1
{[%clk 0:01:20.5]} 22... b5 {[%clk 0:00:38.9]} 23. Re7 {[%clk 0:01:11.7]} 23...
c3 {[%clk 0:00:35.4]} 24. Ne3 {[%clk 0:00:55.2]} 24... b4 {[%clk 0:00:28.8]} 25.
Kf1 {[%clk 0:00:41.6]} 25... a5 {[%clk 0:00:27]} 26. Ke1 {[%clk 0:00:40.3]}
26... a4 {[%clk 0:00:25.6]} 27. a3 {[%clk 0:00:22.4]} 27... b3 {[%clk
0:00:22.4]} 28. Kd1 {[%clk 0:00:21.3]} 28... Nb6 {[%clk 0:00:16.6]} 29. h4
{[%clk 0:00:11.5]} 29... Nd5 {[%clk 0:00:13.4]} 30. Nxd5 {[%clk 0:00:10.7]}
30... cxd5 {[%clk 0:00:14.3]} 31. h5+ {[%clk 0:00:10.5]} 31... Kxh5 {[%clk
0:00:13.1]} 32. Rxf7 {[%clk 0:00:10.4]} 32... Kg6 {[%clk 0:00:13]} 33. Rc7
{[%clk 0:00:05.9]} 33... b2 {[%clk 0:00:11.3]} 34. Kc2 {[%clk 0:00:04.4]} 34...
Bf5+ {[%clk 0:00:11.1]} 0-1

[Event "*** SCC Grand Prix: Titled Tuesday Blitz"]
[Site "Chess.com"]
[Date "2020.07.21"]
[Round "6"]
[White "pooh2012"]
[Black "GMartin_Petrov"]
[Result "0-1"]
[WhiteElo "2427"]
[BlackElo "2611"]
[TimeControl "180+1"]
[EndTime "11:06:53 PDT"]
[Termination "GMartin_Petrov won by resignation"]

1. e4 {[%clk 0:03:00.6]} 1... c6 {[%clk 0:02:58.5]} 2. Nc3 {[%clk 0:02:58.3]}
2... d5 {[%clk 0:02:59.4]} 3. Nf3 {[%clk 0:02:58.2]} 3... g6 {[%clk 0:02:58.3]}
4. h4 {[%clk 0:02:57]} 4... Bg4 {[%clk 0:02:57]} 5. Be2 {[%clk 0:02:55.3]} 5...
Bg7 {[%clk 0:02:55.8]} 6. exd5 {[%clk 0:02:44.8]} 6... cxd5 {[%clk 0:02:55]} 7.
d4 {[%clk 0:02:42]} 7... Nc6 {[%clk 0:02:54.4]} 8. Be3 {[%clk 0:02:34.5]} 8...
Nf6 {[%clk 0:02:54]} 9. Ne5 {[%clk 0:02:21.6]} 9... Bxe2 {[%clk 0:02:50.6]} 10.
Qxe2 {[%clk 0:02:22.5]} 10... h5 {[%clk 0:02:26.3]} 11. Qb5 {[%clk 0:01:30.6]}
11... O-O {[%clk 0:02:19.5]} 12. Qxb7 {[%clk 0:01:11.1]} 12... Nxe5 {[%clk
0:02:09]} 13. dxe5 {[%clk 0:01:12]} 13... Rb8 {[%clk 0:02:07.3]} 14. Qc6 {[%clk
0:00:37.8]} 14... Ng4 {[%clk 0:02:04.5]} 15. Qxd5 {[%clk 0:00:28.7]} 15... Nxe3
{[%clk 0:01:55.3]} 16. Qxd8 {[%clk 0:00:23.3]} 16... Nxg2+ {[%clk 0:01:49.8]}
17. Kf1 {[%clk 0:00:23.3]} 17... Rfxd8 {[%clk 0:01:49.8]} 18. Kxg2 {[%clk
0:00:23.2]} 18... Rxb2 {[%clk 0:01:49.5]} 19. Rad1 {[%clk 0:00:19.3]} 19... Rxd1
{[%clk 0:01:46.8]} 20. Rxd1 {[%clk 0:00:18.5]} 20... Bxe5 {[%clk 0:01:46.1]} 21.
Nd5 {[%clk 0:00:16.4]} 21... e6 {[%clk 0:01:41.9]} 22. Ne3 {[%clk 0:00:15.2]}
22... Rxa2 {[%clk 0:01:41.7]} 23. c4 {[%clk 0:00:11.9]} 23... a5 {[%clk
0:01:37.8]} 24. Kf3 {[%clk 0:00:10.3]} 24... a4 {[%clk 0:01:36.4]} 25. c5 {[%clk
0:00:10]} 25... a3 {[%clk 0:01:35]} 26. Rd8+ {[%clk 0:00:08.8]} 26... Kg7 {[%clk
0:01:34.5]} 27. Ra8 {[%clk 0:00:09.4]} 27... Ra1 {[%clk 0:01:28.4]} 28. c6
{[%clk 0:00:05.3]} 28... Rc1 {[%clk 0:01:11.5]} 29. Rxa3 {[%clk 0:00:03.3]}
29... Rxc6 {[%clk 0:01:11.1]} 30. Ra4 {[%clk 0:00:04.2]} 30... Rc3 {[%clk
0:01:08.7]} 31. Re4 {[%clk 0:00:04]} 31... Bd6 {[%clk 0:01:07.5]} 32. Kg2 {[%clk
0:00:04]} 32... Bc5 {[%clk 0:01:06.1]} 33. Nf1 {[%clk 0:00:02.9]} 33... Rc2
{[%clk 0:01:06]} 34. Rf4 {[%clk 0:00:03.4]} 34... e5 {[%clk 0:01:04.6]} 35. Rf3
{[%clk 0:00:03.4]} 35... e4 {[%clk 0:01:03.5]} 36. Rf4 {[%clk 0:00:03.9]} 36...
f5 {[%clk 0:01:03.7]} 37. Ng3 {[%clk 0:00:02.3]} 37... e3 {[%clk 0:00:52.6]} 38.
Kf1 {[%clk 0:00:02.2]} 38... Rxf2+ {[%clk 0:00:46.3]} 39. Rxf2 {[%clk
0:00:01.6]} 39... exf2 {[%clk 0:00:47.2]} 40. Ne2 {[%clk 0:00:02.1]} 40... Kf6
{[%clk 0:00:46.1]} 41. Nf4 {[%clk 0:00:02.6]} 41... Be3 {[%clk 0:00:40]} 42. Ng2
{[%clk 0:00:02.6]} 42... f4 {[%clk 0:00:38.9]} 43. Nxe3 {[%clk 0:00:01.2]} 43...
fxe3 {[%clk 0:00:38.5]} 44. Ke2 {[%clk 0:00:02.1]} 44... Kf5 {[%clk 0:00:38.6]}
45. Kf1 {[%clk 0:00:02.1]} 45... Kg4 {[%clk 0:00:38.5]} 46. Ke2 {[%clk 0:00:03]}
46... Kf4 {[%clk 0:00:38.7]} 47. Kf1 {[%clk 0:00:03]} 47... Kg3 {[%clk
0:00:39.3]} 48. Ke2 {[%clk 0:00:03.4]} 48... Kg4 {[%clk 0:00:38.8]} 0-1

[Event "*** SCC Grand Prix: Titled Tuesday Blitz"]
[Site "Chess.com"]
[Date "2020.07.21"]
[Round "6"]
[White "Witik"]
[Black "KingCrusher275"]
[Result "1-0"]
[WhiteElo "2604"]
[BlackElo "2396"]
[TimeControl "180+1"]
[EndTime "11:06:55 PDT"]
[Termination "Witik won by resignation"]

1. d4 {[%clk 0:02:56.8]} 1... d5 {[%clk 0:02:59.8]} 2. Bf4 {[%clk 0:02:55.7]}
2... Nf6 {[%clk 0:02:58.9]} 3. e3 {[%clk 0:02:55.7]} 3... c5 {[%clk 0:02:59.1]}
4. c3 {[%clk 0:02:55.9]} 4... Nc6 {[%clk 0:02:58.1]} 5. Nd2 {[%clk 0:02:56.3]}
5... cxd4 {[%clk 0:02:58.4]} 6. exd4 {[%clk 0:02:55.6]} 6... Bf5 {[%clk
0:02:58.6]} 7. Ngf3 {[%clk 0:02:55.6]} 7... e6 {[%clk 0:02:57.8]} 8. Nh4 {[%clk
0:02:54.2]} 8... Be4 {[%clk 0:02:57.1]} 9. Qb3 {[%clk 0:02:52.5]} 9... Qc8
{[%clk 0:02:52]} 10. f3 {[%clk 0:02:51.2]} 10... Bg6 {[%clk 0:02:50.5]} 11. g4
{[%clk 0:02:48]} 11... Be7 {[%clk 0:02:35.3]} 12. Nxg6 {[%clk 0:02:37.9]} 12...
hxg6 {[%clk 0:02:33.5]} 13. Bd3 {[%clk 0:02:30.3]} 13... Qd7 {[%clk 0:02:16.9]}
14. O-O-O {[%clk 0:02:27.1]} 14... O-O-O {[%clk 0:02:16.9]} 15. Qa4 {[%clk
0:02:13.1]} 15... Bd6 {[%clk 0:02:15.3]} 16. Be3 {[%clk 0:02:00]} 16... Rxh2
{[%clk 0:02:04.5]} 17. Rxh2 {[%clk 0:01:58]} 17... Bxh2 {[%clk 0:02:04.4]} 18.
Nb3 {[%clk 0:01:50.9]} 18... Bd6 {[%clk 0:01:55.2]} 19. Kb1 {[%clk 0:01:45.2]}
19... Kb8 {[%clk 0:01:37.1]} 20. Nc5 {[%clk 0:01:19.3]} 20... Bxc5 {[%clk
0:01:35.8]} 21. dxc5 {[%clk 0:01:20.2]} 21... Ne5 {[%clk 0:01:14.3]} 22. Bb5
{[%clk 0:01:07.1]} 22... Nc6 {[%clk 0:01:05.4]} 23. Bf4+ {[%clk 0:01:04.2]}
23... Ka8 {[%clk 0:01:05.3]} 24. c4 {[%clk 0:01:00.8]} 24... Rh8 {[%clk
0:00:32.6]} 25. a3 {[%clk 0:00:55.7]} 25... Rh3 {[%clk 0:00:19.1]} 26. Be5
{[%clk 0:00:38.7]} 26... Rxf3 {[%clk 0:00:17.3]} 27. g5 {[%clk 0:00:37.6]} 27...
Nh5 {[%clk 0:00:08.7]} 28. cxd5 {[%clk 0:00:32.3]} 28... exd5 {[%clk 0:00:09.1]}
29. Ka1 {[%clk 0:00:27.5]} 29... a6 {[%clk 0:00:07.6]} 30. Bd6 {[%clk
0:00:23.7]} 30... Rf5 {[%clk 0:00:06.6]} 31. Re1 {[%clk 0:00:19.8]} 31... f6
{[%clk 0:00:06.1]} 32. Bxc6 {[%clk 0:00:18.5]} 32... Qxc6 {[%clk 0:00:05.5]} 33.
Re8+ {[%clk 0:00:18]} 33... Ka7 {[%clk 0:00:05.1]} 34. Bb8+ {[%clk 0:00:18.1]}
34... Ka8 {[%clk 0:00:04.8]} 35. Bc7+ {[%clk 0:00:18.2]} 35... Ka7 {[%clk
0:00:05.3]} 36. Bb6+ {[%clk 0:00:17.5]} 36... Qxb6 {[%clk 0:00:05.7]} 37. cxb6+
{[%clk 0:00:16.5]} 37... Kxb6 {[%clk 0:00:06.6]} 38. Qb4+ {[%clk 0:00:14.2]}
38... Ka7 {[%clk 0:00:06.8]} 39. Re7 {[%clk 0:00:14.6]} 1-0